[Event "51st Rilton Cup 2023-24"]
[Site "Stockholm"]
[Date "2023.12.31"]
[Round "5.3"]
[White "Jarmula, Lukasz"]
[Black "Prraneeth Vuppala"]
[Result "1/2-1/2"]
[ECO "E51"]
[WhiteElo "2425"]
[BlackElo "2515"]
[Annotator "TA"]
[PlyCount "113"]
[EventDate "2023.12.27"]
[EventType "swiss"]
[EventCountry "SWE"]
[SourceTitle "playchess.com"]
[Source "ChessBase"]
[SourceQuality "1"]
[TimeControl "40/5400+30:1800+30"]

{[%evp 16,113,45,54,44,34,56,35,51,52,34,45,34,38,208,215,210,192,188,183,227,216,213,0,16,0,61,70,91,-170,-161,-213,-203,-198,-174,-266,-122,-125,-118,-100,-108,-99,-97,-122,-50,-124,-78,-101,-27,-106,0,0,0,-208,-206,-382,-188,-231,0,-425,-366,-431,-427,-403,-375,-341,0,0,0,0,0,0,0,0,0,0,0,0,0,-83,-58,-80,0,0,0,0,0,0,0,0,0,0,0,0,0,0,0,0,0,0]} 1. c4 {[%emt 0:00:03]} e6 {[%emt 0:00:44]} 2. Nc3 {[%emt 0:00:55]} d5 {[%emt 0:00:29]} 3. d4 {[%emt 0:00:07]} Bb4 {[%emt 0:00:53]} 4. e3 {[%emt 0:03:02]} Nf6 {[%emt 0:00:48]} 5. Qa4+ {[%emt 0:01:26]} Nc6 {[%emt 0:00:08]} 6. Nf3 {[%emt 0:00:06]} O-O {[%emt 0:02:19]} 7. Qc2 {[%emt 0:00:38]} dxc4 {[%emt 0:06:02]} 8. Bxc4 {[%emt 0:01:08]} a6 {[%emt 0:00:18]} 9. O-O {[%emt 0:04:00]} Bd6 {[%emt 0:02:32] E51: Nimzo-Indian: Rubinstein: 4...0-0 5 Nf3 d5.} 10. a3 {[%emt 0:10:57]} Qe7 {[%emt 0:12:52]} 11. e4 {[%emt 0:17:48]} e5 $1 {[%emt 0:12:42] [#] White is slightly better.} 12. Bg5 $146 {[%emt 0:03:13]} ({Predecessor:} 12. d5 Nd4 13. Qd1 Bg4 14. Be2 Nxe2+ 15. Qxe2 h6 16. h3 Bh5 17. Kh1 Qd7 18. Qd3 {½-½ Aguila Filho,R-Torres,V Cearense-ch Fortaleza 2004 (4)}) 12... Nxd4 {[%emt 0:02:52]} 13. Nxd4 {[%emt 0:00:47]} exd4 {[%emt 0:00:03]} 14. Nd5 {[%emt 0:00:16]} Bxh2+ $2 {[%emt 0:16:21]} 15. Kh1 $1 $18 {[%emt 0:00:55]} (15. Kxh2 Ng4+ 16. Kg1 Qxg5 $17) 15... Qd6 {[%emt 0:00:51]} (15... Qxe4 $2 16. Nxf6+ gxf6 17. Qxe4 $18) 16. Bxf6 {[%emt 0:08:20]} gxf6 {[%emt 0:07:23]} 17. g3 {[%emt 0:01:43]} b5 {[%emt 0:03:10]} 18. Bd3 {[%emt 0:07:10]} c5 {[%emt 0:01:38][%cal Of6f5,Bc7c5,Bc5c4][%mdl 32]} 19. f4 $2 {[%emt 0:03:21]} (19. Kxh2 f5 $16) (19. Qd2 $18 Kg7 20. Kxh2) 19... c4 {[%emt 0:03:58]} (19... Bxg3 $2 20. Rf3 Kh8 21. Rxg3 $18) 20. Qxh2 {[%emt 0:01:08]} (20. Bxc4 $5 {[%cal Rc2h2]} f5 21. Kxh2 bxc4 22. Qxc4 $11) 20... Bb7 {[%emt 0:02:50]} (20... cxd3 $2 21. Qh6 $18) (20... f5 $1 $11 21. Qh5 f6) 21. Be2 $14 {[%emt 0:05:18]} f5 $1 {[%emt 0:02:29] aiming for ...Rfe8.} 22. Qh4 $2 {[%emt 0:15:15][%mdl 8192]} (22. Bf3 $1 $16 {is necessary to keep the advantage. And now e5 would win.} fxe4 23. Bxe4) 22... f6 $19 {[%emt 0:00:13]} 23. Bf3 {[%emt 0:02:28]} (23. Kg2 {was called for.} fxe4 24. Ne3 (24. Rh1 $2 Rf7 $19)) 23... fxe4 $1 {[%emt 0:10:26]} 24. Bxe4 {[%emt 0:00:53][%csl Ge4][%cal Rh4h7]} Qd7 {[%emt 0:00:50]} 25. Nb6 {[%emt 0:04:43]} (25. Qh5 Rad8 26. Nxf6+ Rxf6) (25. Nxf6+ $142 Rxf6 26. Kh2) 25... Bxe4+ {[%emt 0:00:44]} (25... Qe7 $1 $19 {[%cal Re7e4] and Black stays clearly on top.} 26. Qg4+ Kh8) 26. Kh2 $17 {[%emt 0:00:28]} Qd6 {[%emt 0:03:15]} 27. Nxa8 {[%emt 0:00:07][%cal Of4f5]} Bxa8 {[%emt 0:00:24]} (27... Rxa8 $6 28. f5 Bd3 29. Rf4 $11) 28. Rae1 {[%emt 0:01:09]} d3 {[%emt 0:02:11]} 29. f5 {[%emt 0:02:28] White is weak on the light squares} Kh8 $40 {[%emt 0:02:50][%mdl 128] Black attacks.} (29... Qd5 $17 {[%csl Ga8][%cal Rd5g2]} 30. Rf2 Bc6) 30. Rf2 {[%emt 0:02:24]} (30. Kh3 $15) 30... Qc5 {[%emt 0:00:50]} ({Better is} 30... a5 31. Kg1 Bd5) 31. Qf4 {[%emt 0:01:35]} Rd8 {[%emt 0:00:27]} ({Black should play} 31... a5 $17 {Threatening ...Bc6.} 32. Qe3 Qd6) 32. Rd2 {[%emt 0:00:31]} (32. Kg1 $1 $11 {remains equal.}) 32... Bc6 {[%emt 0:01:28]} (32... a5 $17 33. Qh4 Rf8) 33. Re6 $1 $11 {[%emt 0:00:57] Qh6 is the strong threat.} Qd5 {[%emt 0:00:19][%csl Gc6][%cal Rd5h1]} 34. Re1 {[%emt 0:00:21] [#] Wards off Qh1+} (34. g4 $1 $11) 34... a5 $1 $19 {[%emt 0:01:03][%cal Ba6a5,Ba5b4][%mdl 32]} 35. Qc7 $2 {[%emt 0:01:13]} (35. Qh6 Qxf5 36. Re7) 35... Rd7 {[%emt 0:00:48]} (35... Rg8 $142 {Hoping for ...b4.} 36. Rf2 b4 37. axb4 axb4) 36. Qf4 {[%emt 0:00:26]} Rd8 {[%emt 0:00:26] Inhibits Re8+.} (36... Rg7 $19 {...b4 would be deadly.} 37. Qh6 Qxf5) 37. Rf2 $2 {[%emt 0:00:17][%mdl 8192]} (37. Qc7 $11) 37... b4 {[%emt 0:00:15] White must now prevent ...d2.} (37... d2 38. Rd1 Qe4 39. Qxe4 (39. Rfxd2 Rxd2+ 40. Qxd2 Qxf5 $11) 39... Bxe4 40. g4 $16) 38. axb4 {[%emt 0:01:02]} axb4 {[%emt 0:00:02]} (38... d2 39. Rd1 Qf7 40. Rfxd2 $18 (40. bxa5 Qh5+ 41. Qh4 Qxd1 $11)) 39. Qh6 {[%emt 0:00:34]} Qf7 {[%emt 0:01:30]} 40. Re6 {[%emt 0:00:40]} Qg7 $2 {[%emt 0:00:29]} (40... Ba8 $19 {Strongly threatening ...c3.} 41. Ra6 (41. Qxf6+ $2 Qxf6 42. Rxf6 c3 $19) (41. Rxf6 $2 Qg7 $19) 41... Qg7) 41. Qe3 $11 {[%emt 0:08:41] Really sharp!} (41. Qxf6 $2 {is the wrong capture.} Qxf6 42. Rxf6 d2 $19) ({Reject} 41. Qxg7+ Kxg7 42. Rxc6 d2 $17) 41... Bd5 {[%emt 0:15:00]} 42. Re8+ $1 {[%emt 0:03:24]} Rxe8 {[%emt 0:00:05]} 43. Qxe8+ {[%emt 0:00:07][%mdl 4096] Endgame KQR-KQB} Qg8 {[%emt 0:01:28]} 44. Qb5 {[%emt 0:09:37]} ({Don't go for} 44. Qe7 $2 Qf7 45. Qd8+ Kg7 $19) 44... Qf7 {[%emt 0:11:08] ( -> ...Qh5+)} 45. Kg1 $1 {[%emt 0:01:04]} Qb7 {[%emt 0:00:37]} 46. Qc5 {[%emt 0:04:39]} Kg7 {[%emt 0:00:14] Repels Qf8+. Threatens to win with ...Bf7.} 47. Qd4 {[%emt 0:01:15]} (47. Rf4 $1 $11 {keeps the balance.}) 47... Bf7 {[%emt 0:01:49]} 48. Qg4+ {[%emt 0:01:50] [#]} Kh8 {[%emt 0:00:28]} (48... Kf8 $1 $17 49. Qd4 Qe7) 49. Qd4 {[%emt 0:00:14] Dodges Qb6. The position is equal.} Qe7 {[%emt 0:02:18]} 50. Rf4 $1 {[%emt 0:01:47]} Qe1+ {[%emt 0:00:22]} 51. Kh2 {[%emt 0:01:10]} Qe2+ {[%emt 0:00:48]} 52. Kh3 {[%emt 0:00:17]} Qh5+ {[%emt 0:00:37]} 53. Kg2 {[%emt 0:00:09]} Qe2+ {[%emt 0:00:57]} 54. Kh3 {[%emt 0:00:08]} Qh5+ {[%emt 0:01:02]} 55. Kg2 {[%emt 0:00:07]} Qe2+ {[%emt 0:00:08]} 56. Kh3 {[%emt 0:00:38]} Qh5+ {[%emt 0:00:44]} 57. Kg2 {[%emt 0:00:06] Whites escaped into a draw.   Weighted Error Value: White=0.39/Black=0.38} 1/2-1/2

[Event "51st Rilton Cup 2023-24"]
[Site "Stockholm"]
[Date "2023.12.31"]
[Round "5.4"]
[White "Ostlund, Joar"]
[Black "Raja Rithvik R"]
[Result "0-1"]
[ECO "D43"]
[WhiteElo "2326"]
[BlackElo "2500"]
[Annotator "TA"]
[PlyCount "78"]
[EventDate "2023.12.27"]
[EventType "swiss"]
[EventCountry "SWE"]
[SourceTitle "playchess.com"]
[Source "ChessBase"]
[SourceQuality "1"]
[TimeControl "40/5400+30:1800+30"]

{[%evp 13,78,15,22,14,30,27,35,13,26,17,16,20,10,22,33,27,25,15,14,0,0,0,0,0,0,0,0,0,-2,0,0,0,58,69,65,8,74,-70,-67,-45,-62,-50,-59,-81,-5,-12,-7,-55,-15,-56,-56,-166,-154,-132,-154,-462,-462,-1479,-1520,-1430,-1009,-1404,-1097,-29976,-29977,-29991,-29992]} 1. d4 {[%emt 0:00:04] Roiz,Michael} Nf6 {[%emt 0:00:11]} 2. c4 {[%emt 0:00:11]} e6 {[%emt 0:00:05]} 3. Nf3 {[%emt 0:00:13]} d5 {[%emt 0:00:09]} 4. Nc3 {[%emt 0:00:22]} c6 {[%emt 0:00:05]} 5. Bg5 {[%emt 0:00:13]} h6 {[%emt 0:00:10]} 6. Bxf6 {[%emt 0:00:13]} Qxf6 {[%emt 0:00:06]} 7. e3 {[%emt 0:00:09][%cal Be2e3,Be3e4][%mdl 32]} g6 {[%emt 0:00:14]} 8. Be2 {[%emt 0:00:26] D43: Semi-Slav: 5 Bg5 h6.} Bg7 {[%emt 0:00:14]} 9. O-O {[%emt 0:00:39]} O-O {[%emt 0:00:09]} 10. e4 {[%emt 0:07:52] White is slightly better.} Qd8 {[%emt 0:00:14]} 11. e5 {[%emt 0:11:12]} dxc4 {[%emt 0:00:27][%cal Oc6c5]} 12. Bxc4 {[%emt 0:07:00]} c5 {[%emt 0:00:38]} 13. dxc5 {[%emt 0:07:09]} Nd7 {[%emt 0:00:24]} 14. Qe2 {[%emt 0:03:09]} Nxc5 {[%emt 0:00:19]} 15. Rfd1 {[%emt 0:04:54]} Qe7 {[%emt 0:00:32]} 16. Nb5 {[%emt 0:02:21]} Bd7 {[%emt 0:07:19]} 17. Nd6 {[%emt 0:07:42]} Bc6 {[%emt 0:02:21]} 18. Nd4 {[%emt 0:02:05]} Qg5 {[%emt 0:01:06][%csl Gc6,LRe5,LRg2][%cal Rg5g2] Wards off f4} 19. Nxc6 {[%emt 0:02:05]} bxc6 {[%emt 0:00:18] [#]} 20. b4 $146 {[%emt 0:38:01]} ({Predecessor:} 20. Re1 Nd7 21. Qe4 Nxe5 22. f4 Nf3+ 23. Kh1 Qc5 24. Qxf3 Qxd6 25. Rad1 Qc7 26. g4 {0-1 Lupulescu,C (2618)-Mamedyarov,S (2761) Olympiad-42 Baku 2016 (4.1)}) 20... Na4 {[%emt 0:00:56] ...Nc3 would be deadly.} 21. Re1 {[%emt 0:00:57]} Rad8 {[%emt 0:04:37]} 22. Rac1 {[%emt 0:02:07]} Nb6 {[%emt 0:07:15]} (22... Nc3 $1 $11 23. Rxc3 Rxd6) 23. Bb3 $14 {[%emt 0:00:06]} Nd5 {[%emt 0:01:07]} 24. Rxc6 {[%emt 0:01:38]} (24. g3 $14) 24... Nxb4 {[%emt 0:03:00] Black is weak on the light squares} (24... Nf4 $1 $11 {keeps the balance.} 25. Qf3 Bxe5) 25. Rc7 {[%emt 0:00:09] [#]} (25. Rcc1 $16) 25... Qxe5 $1 $15 {[%emt 0:04:19][%mdl 64] Remove Defender} 26. Qxe5 {[%emt 0:00:50]} Bxe5 $40 {[%emt 0:00:04][%mdl 128] Black mounts an attack.} 27. Rxe5 {[%emt 0:00:25]} Rxd6 {[%emt 0:00:05]} 28. Rxa7 {[%emt 0:00:16]} Nd3 {[%emt 0:00:53]} ({Better is} 28... Nxa2 $1 $17 29. g3 (29. Rxa2 Rb8 $17) 29... Nb4) 29. Re3 $11 {[%emt 0:01:20]} Rc8 {[%emt 0:00:24]} 30. g3 {[%emt 0:01:10]} (30. h3 $11) 30... g5 {[%emt 0:05:55] White must now prevent ...Rc1+.} 31. Kg2 {[%emt 0:00:31]} Rc1 {[%emt 0:01:40] And now ...Ne1+ would win.} 32. Ra4 {[%emt 0:00:30] [#]} (32. Kf3 $15) 32... Ne1+ $1 $19 {[%emt 0:02:41]} 33. Kh3 {[%emt 0:00:01] [#]} h5 $1 {[%emt 0:00:30]} 34. f3 $2 {[%emt 0:00:54] This costs White the game.} (34. Rae4 $17 {is tougher.} g4+ 35. Kh4 Ng2+ 36. Kxh5 Nxe3 37. fxe3) 34... Rd2 {[%emt 0:01:41][%cal Oe1f3]} 35. Bxe6 {[%emt 0:00:33]} (35. g4 $142 Nd3 36. Rxd3 (36. Ra8+ $2 Kg7 $19) 36... Rxd3 37. Ra5) 35... fxe6 {[%emt 0:01:49]} 36. Ra8+ {[%emt 0:00:30]} Kf7 {[%emt 0:00:22] ...Nd3 is the strong threat.} 37. Ra7+ {[%emt 0:00:07]} Kg6 {[%emt 0:03:14][%cal Oe1f3] ( -> ...Nxf3!)} 38. Ra6 {[%emt 0:00:54] [#]} Nxf3 $1 {[%emt 0:00:27][%csl Gh5][%cal Rg5g4][%mdl 576] Double Attack} 39. Raxe6+ {[%emt 0:00:31]} (39. Rexe6+ Kf7) 39... Kf5 {[%emt 0:00:15] Weighted Error Value: White=0.69/Black=0.28 (precise)} 0-1

[Event "51st Rilton Cup 2023-24"]
[Site "Stockholm"]
[Date "2023.12.31"]
[Round "5.5"]
[White "Parkhov, Yair"]
[Black "Trost, Edvin"]
[Result "0-1"]
[ECO "D12"]
[WhiteElo "2495"]
[BlackElo "2434"]
[Annotator "TA"]
[PlyCount "74"]
[EventDate "2023.12.27"]
[EventType "swiss"]
[EventCountry "SWE"]
[SourceTitle "playchess.com"]
[Source "ChessBase"]
[SourceQuality "1"]
[TimeControl "40/5400+30:1800+30"]

{[%evp 11,74,27,30,20,38,9,12,6,6,12,21,16,29,8,27,0,5,0,20,0,0,-7,29,0,15,3,12,-31,-11,-20,-12,-44,0,-37,-69,-47,-53,-95,-47,-31,0,0,17,-184,-184,-184,-184,-184,-179,-388,-368,-402,-389,-488,-493,-467,-487,-1330,-1341,-1336,-1314,-1297,-1286,-1312,-1299]} 1. d4 {[%emt 0:03:10]} d5 {[%emt 0:00:21]} 2. c4 {[%emt 0:01:00]} c6 {[%emt 0:02:03]} 3. Nf3 {[%emt 0:03:22]} Nf6 {[%emt 0:00:28]} 4. e3 {[%emt 0:00:06]} Bf5 {[%emt 0:00:08]} 5. Nc3 {[%emt 0:00:05]} e6 {[%emt 0:00:04]} 6. Nh4 {[%emt 0:00:05]} Bg6 {[%emt 0:00:05]} 7. Bd2 {[%emt 0:00:41] D12: Slav Defence: 3 Nf3 Nf6 4 e3 Bf5.} Nbd7 {[%emt 0:00:06]} 8. cxd5 {[%emt 0:03:49]} exd5 {[%emt 0:05:27]} 9. Nxg6 {[%emt 0:00:05] The position is equal.} hxg6 {[%emt 0:00:06]} 10. Qc2 {[%emt 0:00:07] [#]} Bb4 $146 {[%emt 0:00:59]} ({Predecessor:} 10... Be7 11. Bd3 Qc7 12. h3 Rc8 13. O-O-O c5 14. Kb1 a6 15. g4 c4 16. Be2 Qc6 {1-0 Roselli Mailhe,B (2433)-Brizzi,M (2022) Montevideo Duchamp Cup 4th 2020 (9)}) 11. Bd3 {[%emt 0:09:15]} Rc8 {[%emt 0:00:43]} 12. a3 {[%emt 0:14:38]} Be7 {[%emt 0:01:13]} 13. Ne2 {[%emt 0:15:30][%cal Od3g6]} Nf8 {[%emt 0:05:17]} 14. h3 {[%emt 0:10:49]} Qd7 {[%emt 0:11:41]} 15. b4 {[%emt 0:02:01]} Ne6 {[%emt 0:01:20]} 16. f3 {[%emt 0:07:03]} b6 {[%emt 0:03:46]} 17. Qa4 {[%emt 0:04:28]} O-O {[%emt 0:02:37]} 18. O-O {[%emt 0:00:30]} Bd6 {[%emt 0:03:36]} 19. Kh1 {[%emt 0:14:19]} Bb8 {[%emt 0:01:07]} 20. Be1 {[%emt 0:00:53]} Rfe8 {[%emt 0:00:32]} 21. Bh4 {[%emt 0:04:00]} Nf8 {[%emt 0:04:19]} 22. Ba6 {[%emt 0:00:34]} ({Much weaker is} 22. Bxf6 gxf6 23. Ba6 Rc7 $15) 22... Rcd8 {[%emt 0:00:51] ...b5 would be deadly.} 23. Qb3 $1 {[%emt 0:00:45]} Re6 $40 {[%emt 0:03:17][%mdl 128] White needs to defend precisely.} 24. Bf2 {[%emt 0:02:56]} Qc7 {[%emt 0:01:10]} (24... c5 $17 {Threatens to win with ...c4.} 25. a4 c4) 25. g3 $15 {[%emt 0:00:41]} Rde8 {[%emt 0:01:47]} 26. Rac1 {[%emt 0:00:24]} Nh5 {[%emt 0:01:01]} 27. Nf4 $2 {[%emt 0:01:42] [#] This costs White the game.} (27. Rc3 $11 {and White is okay.}) 27... Rxe3 $3 $19 {[%emt 0:08:47][%mdl 576] Deflection} 28. Bxe3 {[%emt 0:00:08] aiming for Nxh5.} Nxg3+ {[%emt 0:00:02]} 29. Kg1 {[%emt 0:00:18] [#]} Nh5 $1 {[%emt 0:05:25] A dynamic duo of knights.} 30. Rf2 $2 {[%emt 0:00:56]} ({Wrong is} 30. Rce1 $2 Nxf4 31. Kh1 Ng2 $19) (30. Rfe1 {was the only chance.} Nxf4 31. Qc2) 30... Nxf4 {[%emt 0:00:23]} 31. Bf1 {[%emt 0:00:04]} Qe7 {[%emt 0:01:15]} 32. Bxf4 {[%emt 0:01:24]} Bxf4 {[%emt 0:00:02] Black is clearly winning.} 33. Rcc2 {[%emt 0:00:31] White is weak on the dark squares} ({Reject} 33. Rxc6 Be3 34. Qc2 Ne6 $19) 33... Be3 {[%emt 0:00:28] ...Qg5+ is the strong threat.} 34. Qxe3 {[%emt 0:00:27]} (34. f4 $142) 34... Qxe3 {[%emt 0:00:10]} 35. Rce2 {[%emt 0:00:02]} Qg5+ {[%emt 0:00:07]} 36. Rg2 {[%emt 0:00:05]} Qd8 {[%emt 0:00:03]} 37. Rxe8 {[%emt 0:00:32]} Qxe8 {[%emt 0:00:04] Weighted Error Value: White=0.47/Black=0.10 (very precise)} 0-1

[Event "51st Rilton Cup 2023-24"]
[Site "Stockholm"]
[Date "2023.12.31"]
[Round "5.6"]
[White "Borgaonkar Akshay"]
[Black "Sivuk, Vitaly"]
[Result "1/2-1/2"]
[ECO "C77"]
[WhiteElo "2206"]
[BlackElo "2490"]
[Annotator "TA"]
[PlyCount "63"]
[EventDate "2023.12.27"]
[EventType "swiss"]
[EventCountry "SWE"]
[SourceTitle "playchess.com"]
[Source "ChessBase"]
[SourceQuality "1"]
[TimeControl "40/5400+30:1800+30"]

{[%evp 13,63,4,14,5,7,0,0,0,0,-10,-2,-8,0,-14,-8,-14,-16,-14,0,0,0,0,0,0,0,0,0,0,0,0,0,0,0,0,0,0,0,0,0,0,0,0,0,0,0,0,12,0,10,6,6,3]} 1. e4 {[%emt 0:00:04]} e5 {[%emt 0:00:20]} 2. Nf3 {[%emt 0:00:18]} Nc6 {[%emt 0:00:14]} 3. Bb5 {[%emt 0:00:09][%cal Bf1b5,Bb5a4,Ba4b3,Bb3d5][%mdl 32]} a6 {[%emt 0:00:11]} 4. Ba4 {[%emt 0:00:07]} Nf6 {[%emt 0:00:09]} 5. d3 {[%emt 0:00:07]} b5 {[%emt 0:00:12]} 6. Bb3 {[%emt 0:00:08]} Be7 {[%emt 0:00:09]} 7. Nc3 {[%emt 0:01:35]} d6 {[%emt 0:00:30][%cal Bd7d6,Bd6d5][%mdl 32] The position is equal.} 8. a3 {[%emt 0:03:07] C77: Ruy Lopez: 3...a6 4 Ba4 Nf6, unusual lines.} O-O {[%emt 0:01:56]} 9. Nd5 {[%emt 0:00:35]} Na5 {[%emt 0:03:20] has lost popularity (9...Nxd5).} 10. Nxf6+ {[%emt 0:03:31]} Bxf6 {[%emt 0:00:10]} 11. Bd5 {[%emt 0:00:41]} c6 {[%emt 0:02:05]} 12. Ba2 {[%emt 0:00:20] [#]} d5 $146 {[%emt 0:00:42]} ({Predecessor:} 12... Re8 13. b4 Nb7 14. O-O Be6 15. a4 d5 16. exd5 cxd5 17. d4 e4 18. Ne5 Nd6 {½-½ Kanarek,M (2505)-Kowalczyk,R (2223) EU-ch blitz Katowice 2017 (17)}) 13. Qe2 {[%emt 0:11:52]} Re8 {[%emt 0:01:06]} 14. h3 {[%emt 0:05:19]} Be6 {[%emt 0:01:29]} 15. O-O {[%emt 0:01:45]} c5 {[%emt 0:07:08]} 16. exd5 {[%emt 0:09:04]} Bxd5 {[%emt 0:00:18]} 17. Bxd5 {[%emt 0:01:35]} Qxd5 {[%emt 0:00:08]} 18. Qe4 {[%emt 0:00:54]} Rad8 {[%emt 0:06:16]} 19. Be3 {[%emt 0:05:31]} Qxe4 {[%emt 0:02:55]} 20. dxe4 {[%emt 0:00:03]} Nc4 {[%emt 0:00:15]} 21. a4 {[%emt 0:03:18]} Rc8 {[%emt 0:23:01]} 22. axb5 {[%emt 0:03:31]} axb5 {[%emt 0:00:06]} 23. Rfd1 {[%emt 0:09:19]} Nxb2 {[%emt 0:03:28]} 24. Rdb1 {[%emt 0:00:21]} Nc4 {[%emt 0:01:50][%cal Bb2c4,Bc4d6,Bd6e4][%mdl 32]} 25. Rxb5 {[%emt 0:00:06]} Nd6 {[%emt 0:00:10][%csl LRb5,LRe4]} 26. Rxc5 {[%emt 0:00:04]} Nxe4 {[%emt 0:00:14]} 27. Rxc8 {[%emt 0:00:05]} Rxc8 {[%emt 0:00:06]} 28. Ra5 {[%emt 0:00:19]} Re8 {[%emt 0:05:24]} 29. c4 {[%emt 0:00:23]} h6 {[%emt 0:00:12]} 30. c5 {[%emt 0:00:40]} Rc8 {[%emt 0:01:52] [#]} 31. c6 $1 {[%emt 0:00:40]} Rxc6 {[%emt 0:00:53]} 32. Nxe5 {[%emt 0:00:07] A rather calm draw.   Weighted Error Value: White=0.03 (flawless) /Black=0.03 (flawless)} 1/2-1/2